bitfinex/quotes_SOLUSD_20230103
["timestamp","ask_amount","ask_price","bid_price","bid_amount"]
[1672763110725,812.5,13.401,13.386,74.35550586]
[1672763110726,30.0,13.4,13.386,74.35550586]
[1672763110930,30.0,13.399,13.382,11.08137784]
[1672763111256,30.0,13.399,13.375,37.95048861]
[1672763111469,30.0,13.399,13.376,67.20137784]
[1672763111885,30.0,13.399,13.377,11.08137784]
[1672763112083,30.0,13.399,13.378,56.12]
[1672763112289,30.0,13.399,13.377,56.12]
[1672763112516,30.0,13.399,13.38,7.94]
[1672763112731,30.0,13.399,13.381,56.1]
[1672763113145,30.0,13.399,13.381,67.18137784]
[1672763113583,30.0,13.399,13.382,20.0]
[1672763113772,1000.0,13.399,13.383,56.09]
[1672763113991,1000.0,13.399,13.383,67.17137784]
[1672763114304,30.0,13.398,13.384,45.66968392]
[1672763116122,56.04,13.397,13.384,45.66968392]
[1672763116418,30.0,13.396,13.373,56.14]
[1672763116736,30.0,13.394,13.379,11.08137784]
[1672763117040,30.0,13.394,13.38,37.95048861]
[1672763117357,30.0,13.394,13.381,45.66968392]
[1672763117553,1000.0,13.399,13.382,76.1]
[1672763117760,1000.0,13.399,13.382,125.13186645]
[1672763117976,30.0,13.398,13.383,87.08683919]
[1672763118298,30.0,13.398,13.384,41.41715527]
[1672763118705,30.0,13.398,13.384,94.21717036]
[1672763118925,1000.0,13.399,13.385,11.08137784]
[1672763119141,1000.0,13.399,13.386,20.0]
[1672763119348,30.0,13.398,13.386,83.13579252]
[1672763119560,30.0,13.398,13.386,41.41715527]
[1672763119772,30.0,13.398,13.387,44.62945986]
[1672763120608,30.0,13.398,13.388,38.11001059]
[1672763120814,30.0,13.398,13.387,44.62945986]
[1672763121024,30.0,13.398,13.389,47.64509274]
[1672763121247,30.0,13.396,13.389,47.64509274]
[1672763121438,30.0,13.396,13.38,39.73]
[1672763121650,30.0,13.396,13.381,47.64509274]
[1672763121982,30.0,13.396,13.381,93.06110333]
[1672763122200,30.0,13.396,13.382,45.41601059]
[1672763122501,30.0,13.396,13.382,93.06110333]
[1672763122722,30.0,13.396,13.383,47.64509274]
[1672763122910,30.0,13.396,13.383,93.06110333]
[1672763123250,30.0,13.396,13.384,45.41601059]
[1672763123438,30.0,13.396,13.383,47.64509274]
[1672763124297,30.0,13.394,13.373,56.14]
[1672763124511,30.0,13.394,13.37,126.0431]
[1672763124512,30.0,13.392,13.375,47.64509274]
[1672763124721,56.06,13.391,13.375,47.64509274]
[1672763124933,30.0,13.39,13.375,47.64509274]
[1672763125772,86.03,13.398,13.38,7.94]
[1672763126094,30.0,13.396,13.381,103.74509274]
[1672763126504,30.0,13.396,13.382,47.64509274]
[1672763126716,30.0,13.395,13.382,47.64509274]
[1672763127132,30.0,13.395,13.372,97.62697725]
[1672763127342,56.05,13.394,13.373,47.64509274]
[1672763127556,30.0,13.393,13.374,56.13]
[1672763127775,30.0,13.391,13.374,11.08137784]
[1672763127977,30.0,13.391,13.375,47.64509274]
[1672763128189,30.0,13.391,13.375,58.72647058]
[1672763128387,30.0,13.391,13.375,47.64509274]
[1672763130079,30.0,13.391,13.372,56.14]
[1672763130281,56.07,13.39,13.366,56.17]
[1672763130508,30.0,13.389,13.366,47.64509274]
[1672763130715,30.0,13.387,13.367,56.16]
[1672763131249,30.0,13.388,13.368,100.21344783]
[1672763131561,30.0,13.388,13.369,114.87647058]
[1672763132068,30.0,13.388,13.37,58.72647058]
[1672763132279,110.9518,13.39,13.371,56.14]
[1672763132594,1030.0,13.399,13.38,7.94]
[1672763132822,1030.0,13.399,13.381,56.1]
[1672763133326,1030.0,13.399,13.381,47.64509274]
[1672763133536,1030.0,13.399,13.382,56.1]
[1672763133962,30.0,13.397,13.383,47.64509274]
[1672763134182,30.0,13.397,13.385,44.92741793]
[1672763134391,30.0,13.397,13.384,45.02990257]
[1672763134590,30.0,13.397,13.379,56.11]
[1672763134799,30.0,13.397,13.38,46.03323503]
[1672763135025,30.0,13.397,13.382,48.28547115]
[1672763135241,30.0,13.397,13.383,56.09]
[1672763135455,30.0,13.397,13.381,103.74509274]
[1672763135765,30.0,13.397,13.384,11.08137784]
[1672763135967,30.0,13.397,13.385,56.09]
[1672763136178,30.0,13.397,13.386,48.28547115]
[1672763136396,30.0,13.397,13.374,56.13]
[1672763136609,30.0,13.397,13.379,11.08137784]
[1672763136817,30.0,13.397,13.38,56.11]
[1672763137133,30.0,13.397,13.381,11.08137784]
[1672763137348,30.0,13.397,13.382,56.1]
[1672763137748,30.0,13.397,13.382,11.08137784]
[1672763138163,30.0,13.397,13.373,56.14]
[1672763138377,30.0,13.397,13.379,11.08137784]
[1672763138697,30.0,13.397,13.38,56.11]
[1672763139121,30.0,13.397,13.381,11.08137784]
[1672763139442,1000.0,13.395,13.381,11.08137784]
[1672763139867,1000.0,13.395,13.376,56.12]
[1672763139868,56.05,13.394,13.375,41.34615941]
[1672763140178,30.0,13.393,13.374,11.08137784]
[1672763140492,30.0,13.391,13.374,11.08137784]
[1672763140684,56.07,13.39,13.374,11.08137784]
[1672763140895,30.0,13.389,13.374,11.08137784]
[1672763141110,56.07,13.388,13.374,11.08137784]
[1672763141333,30.0,13.387,13.374,11.08137784]
[1672763142371,30.0,13.393,13.375,56.13]
[1672763142595,30.0,13.393,13.375,97.47615941]
[1672763142809,30.0,13.393,13.376,11.08137784]
[1672763142996,30.0,13.393,13.377,56.12]
[1672763143417,30.0,13.391,13.378,11.08137784]
[1672763143650,30.0,13.391,13.368,56.16]
[1672763143852,30.0,13.389,13.367,56.16]
[1672763144177,30.0,13.389,13.372,11.08137784]
[1672763144380,30.0,13.389,13.373,56.14]
[1672763144586,30.0,13.389,13.37,56.15]
[1672763144790,30.0,13.388,13.371,11.08137784]
[1672763145002,76.08,13.387,13.371,11.08137784]
[1672763145324,30.0,13.386,13.371,11.08137784]
[1672763145948,30.0,13.388,13.371,61.84783478]
[1672763146181,30.0,13.388,13.372,56.14]
[1672763146359,30.0,13.388,13.372,67.22137784]
[1672763146566,30.0,13.389,13.373,41.34615941]
[1672763146781,30.0,13.393,13.374,56.13]
[1672763146989,30.0,13.393,13.376,30.0]
[1672763147223,30.0,13.393,13.377,56.12]
[1672763147413,30.0,13.393,13.377,11.08137784]
[1672763147618,30.0,13.393,13.378,97.60697725]
[1672763147834,30.0,13.393,13.378,108.68835509]
[1672763148046,30.0,13.393,13.379,11.08137784]
[1672763148249,30.0,13.393,13.38,56.11]
[1672763148460,30.0,13.393,13.379,56.11]
[1672763148670,30.0,13.393,13.378,41.34615941]
[1672763149097,30.0,13.393,13.379,56.11]
[1672763149941,30.0,13.393,13.375,56.13]
[1672763150155,1000.0,13.392,13.38,0.00137784]
[1672763150372,1000.0,13.392,13.375,41.34615941]
[1672763150373,56.06,13.391,13.37,56.15]
[1672763150576,30.0,13.39,13.374,11.08137784]
[1672763150787,30.0,13.388,13.374,11.08137784]
[1672763151415,30.0,13.388,13.371,41.34615941]
[1672763151621,30.0,13.388,13.371,52.42753725]
[1672763152889,30.0,13.386,13.361,56.19]
[1672763153210,56.09,13.385,13.371,9.92029753]
[1672763153840,30.0,13.384,13.371,9.92029753]
[1672763154040,56.09,13.383,13.366,11.08137784]
[1672763154254,30.0,13.382,13.357,174.889]
[1672763154457,30.0,13.382,13.358,11.08137784]
[1672763154458,56.1,13.381,13.358,11.08137784]
[1672763154667,20.0,13.38,13.359,56.2]
[1672763154876,30.0,13.378,13.358,11.08137784]
[1672763155082,56.12,13.377,13.36,11.08137784]
[1672763155523,30.0,13.378,13.36,11.08137784]
[1672763155524,30.0,13.378,13.361,56.19]
[1672763156252,77.31342176,13.378,13.357,56.2]
[1672763156876,30.0,13.377,13.357,56.2]
[1672763157089,130.0,13.378,13.358,85.72087058]
[1672763157299,100.0,13.378,13.36,7.94]
[1672763157633,30.0,13.377,13.361,56.19]
[1672763157822,30.0,13.377,13.361,67.27137784]
[1672763158033,30.0,13.377,13.362,11.08137784]
[1672763158246,30.0,13.377,13.363,56.18]
[1672763158662,30.0,13.377,13.364,11.08137784]
[1672763158879,30.0,13.377,13.362,44.63949274]
[1672763158880,56.12,13.376,13.362,44.63949274]
[1672763159084,30.0,13.375,13.362,44.63949274]
[1672763159509,30.0,13.375,13.362,11.08137784]
[1672763160980,30.0,13.375,13.363,9.99942324]
[1672763161313,30.0,13.375,13.363,21.08080108]
[1672763161837,30.0,13.375,13.364,11.08137784]
[1672763162145,56.13,13.374,13.363,0.00942324]
[1672763162763,30.0,13.373,13.363,0.00942324]
[1672763163083,56.14,13.372,13.344,56.26]
[1672763163516,56.14,13.372,13.354,11.08137784]
[1672763163829,30.0,13.371,13.344,56.26]
[1672763164035,30.0,13.369,13.351,129.77037784]
[1672763164251,30.0,13.369,13.352,56.22]
[1672763164462,30.0,13.369,13.356,370.2439757]
[1672763164866,30.0,13.369,13.356,359.16259786]
[1672763165076,56.16,13.368,13.356,359.16259786]
[1672763165286,30.0,13.369,13.356,403.8020906]
[1672763165614,111.7679,13.374,13.357,56.2]
[1672763165806,111.7679,13.374,13.358,30.0]
[1672763166021,111.7679,13.374,13.359,56.2]
[1672763166232,111.7679,13.374,13.359,160.89584766]
[1672763166451,30.0,13.373,13.36,47.67282607]
[1672763166665,30.0,13.373,13.361,56.19]
[1672763167074,30.0,13.373,13.362,11.08137784]
[1672763167288,30.0,13.373,13.362,56.18]
[1672763167494,111.7679,13.374,13.362,114.93420391]
[1672763167715,111.7679,13.374,13.362,58.75420391]
[1672763167930,100.0,13.378,13.363,56.18]
[1672763168130,100.0,13.378,13.364,20.0]
[1672763168456,100.0,13.378,13.37,7.94]
[1672763168653,100.0,13.378,13.371,56.14]
[1672763168857,100.0,13.378,13.371,160.83584766]
[1672763169075,100.0,13.378,13.372,93.61446982]
[1672763169395,100.0,13.378,13.373,149.75446982]
[1672763169611,100.0,13.378,13.373,104.69584766]
[1672763169803,100.0,13.378,13.374,93.61446982]
[1672763170018,100.0,13.378,13.374,103.07845041]
[1672763170226,100.0,13.378,13.375,97.34113648]
[1672763170646,100.0,13.378,13.376,97.20096205]
[1672763170861,100.0,13.378,13.377,30.0]
[1672763170862,48.94499417,13.378,13.377,30.0]
[1672763171075,950.3492724,13.38,13.378,3.73849607]
[1672763171289,904.56026806,13.38,13.379,122.51229779]
[1672763171506,110.4483,13.397,13.379,122.51229779]
[1672763171691,110.4483,13.397,13.385,49.27119289]
[1672763171907,110.4483,13.397,13.371,56.14]
[1672763172118,812.5,13.385,13.35,7.94]
[1672763172453,165.2921,13.384,13.35,31.76]
[1672763172658,30.0,13.383,13.36,7.94]
[1672763172974,109.2021,13.384,13.37,7.94]
[1672763173159,109.2021,13.384,13.371,56.14]
[1672763173374,109.2021,13.384,13.372,20.0]
[1672763173584,109.2021,13.384,13.371,43.93036784]
[1672763173793,30.0,13.383,13.363,56.18]
[1672763174010,30.0,13.383,13.37,7.94]
[1672763174214,30.0,13.383,13.371,56.14]
[1672763174430,30.0,13.383,13.369,56.15]
[1672763174851,30.0,13.383,13.369,43.93036784]
[1672763175071,30.0,13.383,13.361,56.19]
[1672763175394,30.0,13.383,13.364,43.93036784]
[1672763175600,30.0,13.383,13.365,56.17]
[1672763175824,30.0,13.383,13.364,43.93036784]
[1672763176121,30.0,13.383,13.365,43.93036784]
[1672763176349,56.1,13.382,13.357,56.2]
[1672763176572,30.0,13.381,13.357,99.63036784]
[1672763176772,30.0,13.379,13.357,142.26277405]
[1672763177086,30.0,13.377,13.357,99.63036784]
[1672763177296,116.6839,13.376,13.357,99.63036784]
[1672763177496,30.0,13.375,13.357,99.63036784]
[1672763177922,30.0,13.375,13.357,55.7]
[1672763178140,56.13,13.374,13.356,273.0690986]
[1672763178547,30.0,13.373,13.356,273.0690986]
[1672763178756,56.14,13.372,13.356,273.0690986]
[1672763178981,30.0,13.371,13.356,273.0690986]
[1672763179191,56.15,13.37,13.356,273.0690986]
[1672763179399,30.0,13.369,13.356,273.0690986]
[1672763181188,30.0,13.369,13.356,316.99946644]
[1672763181588,30.0,13.369,13.356,273.0690986]
[1672763182232,56.16,13.368,13.356,273.0690986]
[1672763182433,30.0,13.367,13.356,273.0690986]
[1672763183070,30.0,13.367,13.357,56.2]
[1672763183483,30.0,13.367,13.356,273.0690986]
[1672763186743,30.0,13.367,13.357,56.2]
[1672763187168,30.0,13.367,13.356,273.0690986]
[1672763189053,30.0,13.367,13.342,56.27]
[1672763189262,254.77260457,13.366,13.341,55.77]
[1672763189596,84.04065887,13.364,13.341,55.77]
[1672763189799,140.21065887,13.364,13.341,55.77]
[1672763190224,30.0,13.363,13.341,55.77]
[1672763190416,140.22065887,13.362,13.341,55.77]
[1672763190630,30.0,13.361,13.341,55.77]
[1672763190842,140.23065887,13.36,13.341,55.77]
[1672763191168,84.04065887,13.358,13.34,1.64618088]
[1672763191488,30.0,13.357,13.341,56.27]
[1672763191701,84.04065887,13.356,13.341,56.27]
[1672763191902,30.0,13.355,13.341,56.27]
[1672763192117,84.04065887,13.354,13.341,56.27]
[1672763192632,84.04065887,13.352,13.341,111.93927668]
[1672763192833,30.0,13.351,13.342,55.66927668]
[1672763193038,30.0,13.351,13.343,56.26]
[1672763193247,30.0,13.355,13.343,56.26]
[1672763193467,30.0,13.355,13.344,75.66927668]
[1672763193684,30.0,13.355,13.345,56.25]
[1672763193880,30.0,13.355,13.346,20.0]
[1672763194087,115.506,13.364,13.347,56.25]
[1672763194531,30.0,13.374,13.348,30.0]
[1672763194721,142.4863,13.374,13.349,56.24]
[1672763194931,400.0,13.355,13.349,172.56539422]
[1672763195142,400.0,13.355,13.35,75.66927668]
[1672763195374,339.88,13.355,13.351,56.23]
[1672763195563,219.64,13.355,13.352,20.0]
[1672763195771,219.64,13.355,13.347,56.25]
[1672763195984,219.64,13.355,13.35,55.66927668]
[1672763196415,219.64,13.355,13.346,54.28834405]
[1672763196639,30.0,13.368,13.348,66.75065452]
[1672763196833,30.0,13.368,13.35,54.28834405]
[1672763197043,30.0,13.368,13.351,56.23]
[1672763197258,30.0,13.368,13.351,55.66927668]
[1672763197468,842.5,13.368,13.352,56.22]
[1672763197679,30.0,13.367,13.352,111.88927668]
[1672763197888,842.5,13.368,13.353,66.75065452]
[1672763198096,842.5,13.368,13.354,76.22]
[1672763198298,30.0,13.367,13.354,111.88927668]
[1672763198517,30.0,13.367,13.354,55.66927668]
[1672763198718,30.0,13.367,13.35,56.23]
[1672763198936,110.4564,13.366,13.351,55.66927668]
[1672763199135,30.0,13.365,13.352,56.22]
[1672763199561,30.0,13.365,13.352,111.88927668]
[1672763199780,30.0,13.365,13.342,56.27]
[1672763199993,30.0,13.365,13.347,55.66927668]
[1672763200395,30.0,13.365,13.341,56.27]
[1672763200611,30.0,13.365,13.343,11.08137784]
[1672763200816,30.0,13.365,13.344,56.26]
[1672763201038,30.0,13.365,13.345,20.0]
[1672763201261,30.0,13.365,13.346,56.25]
[1672763202079,30.0,13.365,13.343,56.26]
[1672763202400,30.0,13.362,13.341,56.27]
[1672763202608,110.41947438,13.361,13.341,111.93927668]
[1672763202815,30.0,13.36,13.341,56.27]
[1672763203021,54.22947438,13.359,13.341,111.93927668]
[1672763203247,54.22947438,13.359,13.342,11.08137784]
[1672763203460,30.0,13.36,13.343,56.26]
[1672763203671,30.0,13.363,13.343,56.26]
[1672763203985,30.0,13.363,13.344,55.66927668]
[1672763204204,30.0,13.363,13.345,56.25]
[1672763204401,842.5,13.364,13.345,67.33137784]
[1672763204613,30.0,13.363,13.346,20.0]
[1672763204821,30.0,13.363,13.347,56.25]
[1672763205976,30.0,13.363,13.341,56.27]
[1672763206193,56.18,13.362,13.341,56.27]
[1672763206411,30.0,13.361,13.341,56.27]
[1672763206615,30.0,13.361,13.342,11.08137784]
[1672763206937,30.0,13.361,13.343,56.26]
[1672763207137,42.27420442,13.36,13.343,56.26]
[1672763207462,30.0,13.361,13.344,11.08137784]
[1672763207650,842.5,13.364,13.345,56.25]
[1672763207864,812.5,13.364,13.346,30.0]
[1672763208074,812.5,13.364,13.347,56.25]
[1672763208300,249.75,13.37,13.35,7.94]
[1672763208508,249.75,13.37,13.351,76.23]
[1672763208712,249.75,13.37,13.352,30.0]
[1672763208917,249.75,13.37,13.353,76.22]
[1672763209135,249.75,13.37,13.353,125.10901071]
[1672763209333,30.0,13.369,13.354,11.08137784]
[1672763209758,30.0,13.369,13.35,48.88901071]
[1672763209964,249.75,13.37,13.351,56.23]
[1672763210171,249.75,13.37,13.351,11.08137784]
[1672763210389,249.75,13.37,13.353,30.0]
[1672763210613,249.75,13.37,13.355,30.0]
[1672763210825,249.75,13.37,13.356,56.21]
[1672763211017,249.75,13.37,13.36,7.94]
[1672763211231,249.75,13.37,13.357,11.08137784]
[1672763211556,249.75,13.37,13.361,11.08137784]
[1672763212383,249.75,13.37,13.362,56.18]
[1672763212612,249.75,13.37,13.361,116.16038855]
[1672763212812,249.75,13.37,13.363,11.08137784]
[1672763213233,249.75,13.37,13.359,48.88901071]
[1672763213447,249.75,13.37,13.362,11.08137784]
[1672763214182,249.75,13.37,13.363,30.0]
[1672763214406,249.75,13.37,13.364,76.17]
[1672763214611,249.75,13.37,13.364,135.20945768]
[1672763214920,249.75,13.37,13.364,76.17]
[1672763215342,249.75,13.37,13.365,11.08137784]
[1672763215551,249.75,13.37,13.366,20.0]
[1672763215867,249.75,13.37,13.364,50.84696873]
[1672763216064,249.75,13.37,13.367,61.92834657]
[1672763216604,249.75,13.37,13.368,55.66927668]
[1672763217133,249.75,13.37,13.368,117.18607805]
[1672763217330,249.75,13.37,13.368,106.10470021]
[1672763217660,249.75,13.37,13.369,55.66927668]
[1672763218082,249.75,13.37,13.365,61.51680137]
[1672763218286,249.75,13.37,13.366,126.10470021]
[1672763218497,249.75,13.37,13.366,75.66927668]
[1672763219116,249.75,13.37,13.367,55.66927668]
[1672763220168,249.75,13.37,13.368,11.08137784]
[1672763220382,249.75,13.37,13.369,56.15]
[1672763220383,171.703125,13.37,13.369,56.15]
[1672763220584,116.03384832,13.37,13.369,131.81927668]
[1672763220799,39.36944832,13.37,13.369,61.51680137]
[1672763221004,39.36944832,13.37,13.369,55.66927668]
[1672763221220,39.36944832,13.37,13.369,66.75065452]
[1672763221636,39.36944832,13.37,13.369,52.5016896]
[1672763221853,39.36944832,13.37,13.369,11.08137784]
[1672763222489,39.36944832,13.37,13.369,64.75670137]
[1672763222703,30.0,13.393,13.37,30.0]
[1672763223018,38.29484398,13.4,13.371,81.34368252]
[1672763223019,119.8727,13.389,13.371,81.34368252]
[1672763223233,119.8727,13.389,13.372,30.0]
[1672763223423,119.8727,13.389,13.38,7.88]
[1672763223637,119.8727,13.389,13.373,50.26130468]
[1672763223844,119.8727,13.389,13.374,20.0]
[1672763224059,30.0,13.388,13.375,11.08137784]
[1672763224269,119.8727,13.389,13.375,11.08137784]
[1672763224692,119.8727,13.389,13.376,20.0]
[1672763225027,119.8727,13.389,13.377,11.08137784]
[1672763225642,30.0,13.388,13.377,11.08137784]
[1672763226481,119.8727,13.389,13.377,11.08137784]
[1672763226803,56.04,13.397,13.377,50.05058919]
[1672763227114,30.0,13.397,13.38,7.94]
[1672763227305,30.0,13.397,13.378,11.08137784]
[1672763227528,30.0,13.397,13.381,11.08137784]
[1672763228174,30.0,13.397,13.381,50.05058919]
[1672763228573,108.6388,13.398,13.382,11.08137784]
[1672763229015,108.6388,13.398,13.383,76.09]
[1672763229333,108.6388,13.398,13.384,11.08137784]
[1672763229747,30.0,13.397,13.385,76.09]
[1672763230075,30.0,13.397,13.386,11.08137784]
[1672763230494,30.0,13.397,13.383,38.96921135]
[1672763230690,30.0,13.397,13.386,11.08137784]
[1672763231326,30.0,13.397,13.374,56.13]
[1672763231535,30.0,13.397,13.375,11.08137784]
[1672763231756,30.0,13.397,13.376,76.12]
[1672763232162,30.0,13.397,13.377,11.08137784]
[1672763232377,30.0,13.397,13.378,56.12]
[1672763232582,30.0,13.397,13.379,20.0]
[1672763232804,56.04,13.396,13.378,11.08137784]
[1672763233020,56.04,13.396,13.374,56.13]
[1672763233021,30.0,13.395,13.38,11.08137784]
[1672763235016,30.0,13.395,13.369,30.0]
[1672763235017,56.05,13.394,13.369,30.0]
[1672763235230,56.05,13.394,13.37,11.08137784]
[1672763235430,58.36301052,13.393,13.37,11.08137784]
[1672763235626,56.06,13.392,13.37,11.08137784]
[1672763235839,30.0,13.39,13.37,11.08137784]
[1672763236049,225.06891052,13.389,13.37,11.08137784]
[1672763236483,225.06891052,13.389,13.361,56.19]
[1672763236484,30.0,13.388,13.361,56.19]
[1672763236799,140.12065887,13.387,13.362,11.08137784]
[1672763236996,30.0,13.386,13.362,11.08137784]
[1672763237202,84.04065887,13.384,13.352,56.22]
[1672763237412,84.04065887,13.382,13.353,11.08137784]
[1672763237623,84.04065887,13.38,13.354,56.22]
[1672763237852,84.04065887,13.378,13.354,56.22]
[1672763238045,84.04065887,13.376,13.355,11.08137784]
[1672763238259,84.04065887,13.374,13.355,11.08137784]
[1672763238470,30.0,13.373,13.355,11.08137784]
[1672763238692,84.04065887,13.372,13.356,20.0]
[1672763238888,84.04065887,13.37,13.356,20.0]
[1672763239096,84.04065887,13.37,13.357,11.08137784]
[1672763239529,86.08,13.386,13.36,7.88]
[1672763239847,86.08,13.386,13.361,87.27137784]
[1672763240073,30.0,13.386,13.361,87.27137784]
[1672763240250,30.0,13.386,13.362,11.08137784]
[1672763240582,30.0,13.386,13.363,76.18]
[1672763240772,30.0,13.378,13.363,76.18]
[1672763240988,30.0,13.378,13.364,11.08137784]
[1672763241198,30.0,13.378,13.365,76.17]
[1672763241610,30.0,13.378,13.366,11.08137784]
[1672763242035,30.0,13.378,13.366,67.25137784]
[1672763242245,30.0,13.378,13.366,11.08137784]
[1672763242454,30.0,13.386,13.365,20.0]
[1672763242455,30.0,13.386,13.367,11.08137784]
[1672763243113,30.0,13.378,13.367,11.08137784]
[1672763246247,56.09,13.385,13.367,11.08137784]
[1672763246461,30.0,13.386,13.368,20.0]
[1672763246670,30.0,13.386,13.369,56.15]
[1672763246885,30.0,13.386,13.37,20.0]
[1672763247103,30.0,13.386,13.371,56.14]
[1672763247316,30.0,13.386,13.372,20.0]
[1672763247642,30.0,13.386,13.373,56.14]
[1672763247950,112.8433,13.387,13.374,31.08137784]
[1672763248164,112.8433,13.387,13.375,56.13]
[1672763248471,112.8433,13.387,13.376,20.0]
[1672763248689,112.8433,13.387,13.376,31.08137784]
[1672763248899,30.0,13.386,13.377,11.08137784]
[1672763249509,30.0,13.394,13.377,11.08137784]
[1672763249731,30.0,13.394,13.378,76.12]
[1672763249935,30.0,13.394,13.377,11.08137784]
[1672763250145,30.0,13.394,13.379,11.08137784]
[1672763250355,86.05,13.394,13.379,11.08137784]
[1672763251421,86.05,13.394,13.367,56.16]
[1672763251617,86.05,13.394,13.368,31.08137784]
[1672763251836,86.05,13.394,13.369,56.15]
[1672763252167,86.05,13.394,13.37,20.0]
[1672763252351,83.55,13.394,13.37,31.08137784]
[1672763252560,83.55,13.394,13.371,67.22137784]
[1672763252886,27.5,13.394,13.372,87.22137784]
[1672763253092,27.5,13.394,13.373,20.0]
[1672763253296,149.4592,13.396,13.374,56.13]
[1672763253510,149.4592,13.396,13.375,20.0]
[1672763253714,149.4592,13.396,13.376,56.12]
[1672763254144,30.0,13.395,13.377,31.08137784]
[1672763254359,30.0,13.395,13.378,56.12]
[1672763254572,30.0,13.395,13.379,20.0]
[1672763254788,30.0,13.395,13.38,56.11]
[1672763254993,30.0,13.395,13.381,20.0]
[1672763255405,30.0,13.395,13.381,31.08137784]
[1672763255617,30.0,13.395,13.382,67.18137784]
[1672763255944,30.0,13.395,13.383,31.08137784]
[1672763256136,144.4532,13.395,13.383,31.08137784]
[1672763256344,114.4532,13.395,13.384,11.08137784]
[1672763256678,114.4532,13.395,13.385,20.0]
[1672763256886,114.4532,13.395,13.384,11.08137784]
[1672763257095,114.4532,13.395,13.386,45.70730201]
[1672763257301,46.8130981,13.401,13.387,20.0]
[1672763257515,30.0,13.4,13.387,11.08137784]
[1672763257726,30.0,13.4,13.388,11.08137784]
[1672763258150,30.0,13.4,13.389,43.29597535]
[1672763258557,30.0,13.4,13.39,11.08137784]
[1672763258761,46.8130981,13.401,13.39,11.08137784]
[1672763258977,46.8130981,13.401,13.391,43.29597535]
[1672763259194,46.8130981,13.401,13.39,11.08137784]
[1672763259408,30.0,13.4,13.392,11.08137784]
[1672763259624,30.0,13.4,13.384,43.29597535]
[1672763259819,30.0,13.4,13.384,54.37735319]
[1672763260152,30.0,13.4,13.385,11.08137784]
[1672763260343,46.8130981,13.401,13.385,11.08137784]
[1672763260549,46.8130981,13.401,13.386,41.75304868]
[1672763260759,46.8130981,13.401,13.385,11.08137784]
[1672763260968,46.8130981,13.401,13.387,11.08137784]
[1672763261399,30.0,13.4,13.387,11.08137784]
[1672763263406,37.9,13.4,13.378,56.12]
[1672763263609,30.0,13.398,13.378,11.08137784]
[1672763263811,164.2193,13.397,13.378,11.08137784]
[1672763264021,30.0,13.396,13.378,11.08137784]
[1672763264340,56.04,13.395,13.378,11.08137784]
[1672763264666,30.0,13.394,13.378,11.08137784]
[1672763264875,56.05,13.393,13.378,11.08137784]
[1672763265089,30.0,13.396,13.378,11.08137784]
[1672763265307,86.04,13.396,13.378,11.08137784]
[1672763265918,30.0,13.395,13.378,11.08137784]